[Event "Live Chess"]
[Site "Chess.com"]
[Date "2024.06.02"]
[Round "-"]
[White "Nazar-Makarchuk"]
[Black "Colm_Buckley"]
[Result "0-1"]
[WhiteElo "1431"]
[BlackElo "1884"]
[TimeControl "300"]
[EndTime "6:31:41 PDT"]
[Termination "Colm_Buckley won by resignation"]

1. e4 {[%clk 0:04:58.7]} 1... e6 {[%clk 0:04:57.7]} 2. d4 {[%clk 0:04:56.8]}
2... d5 {[%clk 0:04:57.2]} 3. exd5 {[%clk 0:04:55.8]} 3... exd5 {[%clk
0:04:56.2]} 4. Nf3 {[%clk 0:04:55.5]} 4... c6 {[%clk 0:04:55.2]} 5. c4 {[%clk
0:04:54.7]} 5... Nf6 {[%clk 0:04:52.6]} 6. cxd5 {[%clk 0:04:54]} 6... Nxd5
{[%clk 0:04:48.4]} 7. Nc3 {[%clk 0:04:52.8]} 7... Be7 {[%clk 0:04:34.6]} 8. Nxd5
{[%clk 0:04:51.1]} 8... Qxd5 {[%clk 0:04:31.2]} 9. Be2 {[%clk 0:04:49.3]} 9...
O-O {[%clk 0:04:28.9]} 10. O-O {[%clk 0:04:48.8]} 10... Bf5 {[%clk 0:04:25.1]}
11. Bd3 {[%clk 0:04:47.2]} 11... Bxd3 {[%clk 0:04:22.3]} 12. Qxd3 {[%clk
0:04:46.2]} 12... Bf6 {[%clk 0:04:20.8]} 13. Be3 {[%clk 0:04:44.5]} 13... Nd7
{[%clk 0:04:17.7]} 14. Qb3 {[%clk 0:04:43.4]} 14... Qxb3 {[%clk 0:04:15.4]} 15.
axb3 {[%clk 0:04:42.2]} 15... Nb6 {[%clk 0:04:11.3]} 16. Ne5 {[%clk 0:04:33.9]}
16... Rfe8 {[%clk 0:04:03.2]} 17. Nc4 {[%clk 0:04:28.8]} 17... Nd5 {[%clk
0:03:59.7]} 18. Nd6 {[%clk 0:04:18.1]} 18... Re7 {[%clk 0:03:57.7]} 19. Nf5
{[%clk 0:04:07.7]} 19... Rd7 {[%clk 0:03:52]} 20. g3 {[%clk 0:03:57.6]} 20... g6
{[%clk 0:03:49.5]} 21. Nh4 {[%clk 0:03:54.8]} 21... Bxh4 {[%clk 0:03:42.9]} 22.
gxh4 {[%clk 0:03:53.2]} 22... a6 {[%clk 0:03:41.8]} 23. Kg2 {[%clk 0:03:46.6]}
23... Re8 {[%clk 0:03:33.1]} 24. Rfe1 {[%clk 0:03:43.5]} 24... Rde7 {[%clk
0:03:30.5]} 25. Re2 {[%clk 0:03:39.9]} 25... Nxe3+ {[%clk 0:03:24.3]} 26. fxe3
{[%clk 0:03:36]} 26... Rxe3 {[%clk 0:03:23.1]} 27. Rxe3 {[%clk 0:03:30.8]} 27...
Rxe3 {[%clk 0:03:21.8]} 28. Ra3 {[%clk 0:03:29.3]} 28... Rd3 {[%clk 0:03:19.6]}
29. b4 {[%clk 0:03:17.5]} 29... Rxd4 {[%clk 0:03:14.1]} 30. Rb3 {[%clk
0:03:16.2]} 30... Rxh4 {[%clk 0:03:11]} 31. h3 {[%clk 0:03:15.7]} 31... Rd4
{[%clk 0:03:08.2]} 32. Kf3 {[%clk 0:03:14]} 32... f5 {[%clk 0:03:04.8]} 33. Ke3
{[%clk 0:03:13.3]} 33... Re4+ {[%clk 0:03:03.1]} 34. Kd3 {[%clk 0:03:10.6]}
34... Kf7 {[%clk 0:03:01.5]} 35. b5 {[%clk 0:02:43]} 35... axb5 {[%clk
0:02:56.2]} 36. Ra3 {[%clk 0:02:40.6]} 36... g5 {[%clk 0:02:48.6]} 37. Ra7
{[%clk 0:02:39.1]} 37... Re7 {[%clk 0:02:47.7]} 38. Ra1 {[%clk 0:02:33.3]} 38...
Kf6 {[%clk 0:02:45.7]} 39. Rh1 {[%clk 0:02:31]} 39... h5 {[%clk 0:02:44]} 40.
Kd4 {[%clk 0:02:25.1]} 40... f4 {[%clk 0:02:40.6]} 41. Kc5 {[%clk 0:02:24.2]}
41... Kf5 {[%clk 0:02:38.7]} 42. Kb6 {[%clk 0:02:23]} 42... g4 {[%clk
0:02:34.6]} 43. hxg4+ {[%clk 0:02:21.8]} 43... hxg4 {[%clk 0:02:33]} 44. Rh5+
{[%clk 0:02:20.2]} 44... Ke4 {[%clk 0:02:31.6]} 45. Rh4 {[%clk 0:02:18.8]} 45...
Kf3 {[%clk 0:02:30.6]} 46. Rh7 {[%clk 0:02:12.6]} 46... Rxh7 {[%clk 0:02:27.7]}
0-1

[Event "Live Chess"]
[Site "Chess.com"]
[Date "2024.06.02"]
[Round "-"]
[White "booktrunk"]
[Black "JoeyCage"]
[Result "0-1"]
[WhiteElo "1500"]
[BlackElo "2397"]
[TimeControl "300"]
[EndTime "6:31:54 PDT"]
[Termination "JoeyCage won by resignation"]

1. d4 {[%clk 0:04:53.2]} 1... e6 {[%clk 0:04:57.2]} 2. Nc3 {[%clk 0:04:50.1]}
2... d5 {[%clk 0:04:55.4]} 3. Bf4 {[%clk 0:04:44.2]} 3... Nf6 {[%clk 0:04:52.3]}
4. Nb5 {[%clk 0:04:40]} 4... Na6 {[%clk 0:04:49.8]} 5. e3 {[%clk 0:04:37.7]}
5... c6 {[%clk 0:04:47.3]} 6. Nc3 {[%clk 0:04:35.4]} 6... Bd6 {[%clk 0:04:45.9]}
7. Bxa6 {[%clk 0:04:31.9]} 7... bxa6 {[%clk 0:04:40.1]} 8. Bxd6 {[%clk
0:04:29.2]} 8... Qxd6 {[%clk 0:04:38.7]} 9. Nf3 {[%clk 0:04:28.3]} 9... c5
{[%clk 0:04:37.7]} 10. dxc5 {[%clk 0:04:26.4]} 10... Qxc5 {[%clk 0:04:35.6]} 11.
Qd4 {[%clk 0:04:24.9]} 11... Qb6 {[%clk 0:04:32.1]} 12. Rb1 {[%clk 0:04:12.2]}
12... Bd7 {[%clk 0:04:29.8]} 13. O-O {[%clk 0:04:09.3]} 13... Rc8 {[%clk
0:04:26.4]} 14. Rfd1 {[%clk 0:04:05.8]} 14... O-O {[%clk 0:04:22.4]} 15. Ne5
{[%clk 0:04:04]} 15... Rfd8 {[%clk 0:04:18.8]} 16. Nxd7 {[%clk 0:04:01.5]} 16...
Rxd7 {[%clk 0:04:16.7]} 17. Qxb6 {[%clk 0:04:00]} 17... axb6 {[%clk 0:04:15.5]}
18. Ne2 {[%clk 0:03:57.7]} 18... b5 {[%clk 0:04:13]} 19. Rbc1 {[%clk 0:03:56]}
19... Rdc7 {[%clk 0:04:10.9]} 20. c3 {[%clk 0:03:54.7]} 20... Ne4 {[%clk
0:04:08.6]} 21. f3 {[%clk 0:03:50]} 21... Nd6 {[%clk 0:04:06.8]} 22. Kf1 {[%clk
0:03:45.7]} 22... Nc4 {[%clk 0:04:05.2]} 23. Kf2 {[%clk 0:03:33.6]} 23... Nxb2
{[%clk 0:04:03.5]} 24. Rd2 {[%clk 0:03:33]} 24... Na4 {[%clk 0:04:02.3]} 25.
Rdc2 {[%clk 0:03:31.1]} 25... Kf8 {[%clk 0:03:58.9]} 26. a3 {[%clk 0:03:29.5]}
26... Ke7 {[%clk 0:03:57.5]} 27. Ke1 {[%clk 0:03:28.1]} 27... Nb6 {[%clk
0:03:53.9]} 28. Kd2 {[%clk 0:03:27.2]} 28... Nc4+ {[%clk 0:03:51.8]} 29. Kd3
{[%clk 0:03:23.7]} 29... e5 {[%clk 0:03:45.8]} 30. e4 {[%clk 0:03:19.2]} 30...
Rd7 {[%clk 0:03:40.6]} 31. exd5 {[%clk 0:03:15.4]} 31... Rxd5+ {[%clk
0:03:39.1]} 32. Ke4 {[%clk 0:03:14.6]} 32... Ke6 {[%clk 0:03:38]} 33. f4 {[%clk
0:03:11.4]} 33... f5+ {[%clk 0:03:35.4]} 34. Kf3 {[%clk 0:03:08.6]} 34... Rd3+
{[%clk 0:03:32.4]} 35. Kf2 {[%clk 0:03:05.8]} 35... Rcd8 {[%clk 0:03:20.3]} 36.
fxe5 {[%clk 0:03:03.8]} 36... Kxe5 {[%clk 0:03:19.1]} 37. Re1 {[%clk 0:03:00.2]}
37... Rd2 {[%clk 0:03:15.6]} 38. Rxd2 {[%clk 0:02:58.2]} 38... Rxd2 {[%clk
0:03:13.9]} 39. Kf1 {[%clk 0:02:56.9]} 39... Ne3+ {[%clk 0:03:10.4]} 40. Kf2
{[%clk 0:02:54.3]} 40... Ke4 {[%clk 0:03:07.5]} 41. Kg1 {[%clk 0:02:47.2]} 41...
Kd3 {[%clk 0:03:03.4]} 42. Ng3 {[%clk 0:02:45.4]} 42... Rxg2+ {[%clk 0:02:58.4]}
43. Kh1 {[%clk 0:02:43.4]} 43... Rf2 {[%clk 0:02:57.1]} 44. Kg1 {[%clk
0:02:36.1]} 44... Rc2 {[%clk 0:02:53.6]} 45. h4 {[%clk 0:02:24.6]} 45... g6
{[%clk 0:02:48.4]} 46. Nf1 {[%clk 0:02:23.4]} 46... Nxf1 {[%clk 0:02:44.4]} 47.
Rxf1 {[%clk 0:02:22.4]} 47... Rxc3 {[%clk 0:02:43.2]} 48. h5 {[%clk 0:02:15.9]}
48... Ke4 {[%clk 0:02:35.2]} 49. hxg6 {[%clk 0:02:13.2]} 49... hxg6 {[%clk
0:02:34.3]} 50. Ra1 {[%clk 0:02:12.6]} 50... g5 {[%clk 0:02:32.8]} 51. Kf2
{[%clk 0:02:11.9]} 51... Rc2+ {[%clk 0:02:31.2]} 52. Kg3 {[%clk 0:02:10.3]}
52... f4+ {[%clk 0:02:30.2]} 53. Kg4 {[%clk 0:02:09.5]} 53... Rg2+ {[%clk
0:02:29.1]} 54. Kh3 {[%clk 0:02:08.6]} 54... Rg3+ {[%clk 0:02:24.7]} 55. Kh2
{[%clk 0:02:06.2]} 55... g4 {[%clk 0:02:23.9]} 56. a4 {[%clk 0:02:03.1]} 56...
Rh3+ {[%clk 0:02:19.8]} 57. Kg2 {[%clk 0:02:01]} 57... f3+ {[%clk 0:02:18.6]}
58. Kf2 {[%clk 0:01:59.7]} 58... g3+ {[%clk 0:02:16.2]} 59. Kg1 {[%clk
0:01:57.9]} 59... Rh2 {[%clk 0:02:15.3]} 60. axb5 {[%clk 0:01:56.2]} 60... f2+
{[%clk 0:02:13.3]} 0-1

[Event "Live Chess"]
[Site "Chess.com"]
[Date "2024.06.02"]
[Round "-"]
[White "yarek"]
[Black "Ferrarifan27"]
[Result "0-1"]
[WhiteElo "1746"]
[BlackElo "2141"]
[TimeControl "300"]
[EndTime "6:31:57 PDT"]
[Termination "Ferrarifan27 won by resignation"]

1. e4 {[%clk 0:04:56.9]} 1... e5 {[%clk 0:04:58.8]} 2. d4 {[%clk 0:04:56]} 2...
exd4 {[%clk 0:04:57.6]} 3. Qxd4 {[%clk 0:04:55.8]} 3... Nc6 {[%clk 0:04:56.3]}
4. Qe3 {[%clk 0:04:55.5]} 4... Bb4+ {[%clk 0:04:49.6]} 5. Nc3 {[%clk 0:04:54.8]}
5... d6 {[%clk 0:04:46.4]} 6. Bd2 {[%clk 0:04:54.1]} 6... Nf6 {[%clk 0:04:44.3]}
7. O-O-O {[%clk 0:04:53.5]} 7... O-O {[%clk 0:04:41.8]} 8. Qg3 {[%clk
0:04:51.1]} 8... Re8 {[%clk 0:04:24.3]} 9. f3 {[%clk 0:04:45.9]} 9... Be6 {[%clk
0:04:19.2]} 10. Kb1 {[%clk 0:04:41.5]} 10... a5 {[%clk 0:04:13.6]} 11. a3 {[%clk
0:04:37.2]} 11... Bc5 {[%clk 0:04:11.4]} 12. Bb5 {[%clk 0:04:31.6]} 12... Qe7
{[%clk 0:03:58.7]} 13. Nge2 {[%clk 0:04:28.5]} 13... Red8 {[%clk 0:03:55.3]} 14.
Bxc6 {[%clk 0:04:22.9]} 14... bxc6 {[%clk 0:03:53.8]} 15. Nf4 {[%clk 0:04:16.3]}
15... Rdb8 {[%clk 0:03:46.8]} 16. Ka1 {[%clk 0:04:09.4]} 16... Bd4 {[%clk
0:03:25.7]} 17. Na4 {[%clk 0:03:57.3]} 17... Be5 {[%clk 0:03:22.5]} 18. Qf2
{[%clk 0:03:48.7]} 18... c5 {[%clk 0:03:17.2]} 19. g3 {[%clk 0:03:40.4]} 19...
Bd7 {[%clk 0:03:15.2]} 20. Nc3 {[%clk 0:03:35.4]} 20... Rb6 {[%clk 0:03:02.6]}
21. Nfd5 {[%clk 0:03:33]} 21... Nxd5 {[%clk 0:03:00.8]} 22. Nxd5 {[%clk
0:03:32.2]} 22... Bxb2+ {[%clk 0:02:59.3]} 23. Ka2 {[%clk 0:03:29.5]} 23... Be6
{[%clk 0:02:56.4]} 24. c4 {[%clk 0:03:24.1]} 24... Bxd5 {[%clk 0:02:55.3]} 25.
exd5 {[%clk 0:03:22.5]} 25... Bd4 {[%clk 0:02:54.1]} 26. Qg2 {[%clk 0:03:15.7]}
26... Rb2+ {[%clk 0:02:51.9]} 27. Ka1 {[%clk 0:03:13.8]} 27... Rxd2+ {[%clk
0:02:49.2]} 0-1

[Event "Live Chess"]
[Site "Chess.com"]
[Date "2024.06.02"]
[Round "-"]
[White "Queensandpawns"]
[Black "vincents82"]
[Result "1-0"]
[WhiteElo "2293"]
[BlackElo "1980"]
[TimeControl "300"]
[EndTime "6:32:17 PDT"]
[Termination "Queensandpawns won by checkmate"]

1. e4 {[%clk 0:04:58.8]} 1... d5 {[%clk 0:04:58.6]} 2. Nc3 {[%clk 0:04:58.7]}
2... dxe4 {[%clk 0:04:51.3]} 3. Nxe4 {[%clk 0:04:58.6]} 3... Nd7 {[%clk
0:04:50.7]} 4. Ng5 {[%clk 0:04:57.7]} 4... Ngf6 {[%clk 0:04:48.8]} 5. N1f3
{[%clk 0:04:57]} 5... e6 {[%clk 0:04:47.7]} 6. d4 {[%clk 0:04:54.4]} 6... Be7
{[%clk 0:04:43.5]} 7. Nxf7 {[%clk 0:04:43.3]} 7... Kxf7 {[%clk 0:04:42.6]} 8.
Ng5+ {[%clk 0:04:43.1]} 8... Kg6 {[%clk 0:04:41.5]} 9. Nxe6 {[%clk 0:04:41.6]}
9... Qe8 {[%clk 0:04:40.1]} 10. Bd3+ {[%clk 0:04:27.1]} 10... Kf7 {[%clk
0:04:35.1]} 11. Nxc7 {[%clk 0:04:26.4]} 11... Bb4+ {[%clk 0:04:26.2]} 12. Kf1
{[%clk 0:04:22.7]} 12... Qd8 {[%clk 0:04:24.7]} 13. Bc4+ {[%clk 0:04:19.5]}
13... Kg6 {[%clk 0:04:23.3]} 14. Qd3+ {[%clk 0:04:18.2]} 14... Kh5 {[%clk
0:04:21.1]} 15. Bf7+ {[%clk 0:04:14]} 15... g6 {[%clk 0:04:19.7]} 16. Qh3#
{[%clk 0:04:13.4]} 1-0

[Event "Live Chess"]
[Site "Chess.com"]
[Date "2024.06.02"]
[Round "-"]
[White "degringolade64"]
[Black "Ninifu"]
[Result "0-1"]
[WhiteElo "2087"]
[BlackElo "2020"]
[TimeControl "300"]
[EndTime "6:32:20 PDT"]
[Termination "Ninifu won by resignation"]

1. e4 {[%clk 0:04:55.1]} 1... d5 {[%clk 0:04:58.6]} 2. exd5 {[%clk 0:04:53.2]}
2... Nf6 {[%clk 0:04:57.9]} 3. Nf3 {[%clk 0:04:51.6]} 3... Bg4 {[%clk 0:04:55]}
4. Be2 {[%clk 0:04:45.3]} 4... Qxd5 {[%clk 0:04:53.4]} 5. h3 {[%clk 0:04:43.7]}
5... Bh5 {[%clk 0:04:26.7]} 6. O-O {[%clk 0:04:40]} 6... Nc6 {[%clk 0:04:23.7]}
7. d4 {[%clk 0:04:36.5]} 7... e6 {[%clk 0:04:20.6]} 8. c4 {[%clk 0:04:34.6]}
8... Qe4 {[%clk 0:04:06.9]} 9. Nc3 {[%clk 0:04:29.6]} 9... Qg6 {[%clk
0:04:05.8]} 10. d5 {[%clk 0:04:23.6]} 10... O-O-O {[%clk 0:04:03.1]} 11. Qa4
{[%clk 0:04:17.7]} 11... exd5 {[%clk 0:03:55.3]} 12. cxd5 {[%clk 0:04:04]} 12...
Nxd5 {[%clk 0:03:30.4]} 13. Nxd5 {[%clk 0:03:36.9]} 13... Rxd5 {[%clk
0:03:28.3]} 14. Be3 {[%clk 0:03:36.3]} 14... Kb8 {[%clk 0:03:19.9]} 15. Rac1
{[%clk 0:03:23.4]} 15... Ra5 {[%clk 0:03:10.5]} 16. Qb3 {[%clk 0:03:09.3]} 16...
Be7 {[%clk 0:02:18.6]} 17. Rfd1 {[%clk 0:02:41.5]} 17... Rd8 {[%clk 0:02:03.4]}
18. Nd4 {[%clk 0:02:24.9]} 18... Nxd4 {[%clk 0:01:47.9]} 19. Bxh5 {[%clk
0:01:52.9]} 19... Nxb3 {[%clk 0:01:32.9]} 20. Rxd8+ {[%clk 0:01:50.1]} 20...
Bxd8 {[%clk 0:01:30.9]} 21. Rd1 {[%clk 0:01:42.9]} 21... Qf6 {[%clk 0:01:12.5]}
22. axb3 {[%clk 0:01:33.7]} 22... Rxh5 {[%clk 0:01:10]} 0-1

[Event "Live Chess"]
[Site "Chess.com"]
[Date "2024.06.02"]
[Round "-"]
[White "FlyingChessKestrel13"]
[Black "PavelChernomordik"]
[Result "0-1"]
[WhiteElo "2075"]
[BlackElo "2506"]
[TimeControl "300"]
[EndTime "6:32:38 PDT"]
[Termination "PavelChernomordik won by resignation"]

1. e4 {[%clk 0:04:57.8]} 1... g6 {[%clk 0:04:59]} 2. d4 {[%clk 0:04:56.7]} 2...
Bg7 {[%clk 0:04:57.9]} 3. Nc3 {[%clk 0:04:56.3]} 3... d6 {[%clk 0:04:56.9]} 4.
Be3 {[%clk 0:04:53.6]} 4... a6 {[%clk 0:04:54.5]} 5. Nf3 {[%clk 0:04:52.2]} 5...
b5 {[%clk 0:04:52.9]} 6. a3 {[%clk 0:04:50.3]} 6... Bb7 {[%clk 0:04:52]} 7. d5
{[%clk 0:04:48]} 7... c6 {[%clk 0:04:49.3]} 8. dxc6 {[%clk 0:04:45.9]} 8... Nxc6
{[%clk 0:04:48.1]} 9. Qd3 {[%clk 0:04:41.6]} 9... Nf6 {[%clk 0:04:46]} 10. Be2
{[%clk 0:04:38]} 10... Ng4 {[%clk 0:04:42.8]} 11. O-O {[%clk 0:04:34.6]} 11...
Nxe3 {[%clk 0:04:41.5]} 12. fxe3 {[%clk 0:04:34.5]} 12... O-O {[%clk 0:04:40]}
13. Nd4 {[%clk 0:04:33.6]} 13... Ne5 {[%clk 0:04:38.2]} 14. Qd2 {[%clk
0:04:32.3]} 14... Bh6 {[%clk 0:04:36.6]} 15. Nd5 {[%clk 0:04:28.2]} 15... e6
{[%clk 0:04:31.3]} 16. Nf6+ {[%clk 0:04:27]} 16... Kg7 {[%clk 0:04:28.7]} 17.
Kh1 {[%clk 0:04:18.9]} 17... Rc8 {[%clk 0:04:24.9]} 18. c3 {[%clk 0:04:15.7]}
18... Bg5 {[%clk 0:04:17.4]} 19. Ng4 {[%clk 0:04:10.9]} 19... Nxg4 {[%clk
0:04:16.1]} 20. Bxg4 {[%clk 0:04:08.9]} 20... Bxe4 {[%clk 0:04:15.1]} 21. Bxe6
{[%clk 0:04:06.6]} 21... Qe7 {[%clk 0:04:02.5]} 22. Bh3 {[%clk 0:04:00.6]} 22...
f5 {[%clk 0:03:59.9]} 23. Rae1 {[%clk 0:03:54.1]} 23... Qe5 {[%clk 0:03:53.3]}
24. Nf3 {[%clk 0:03:52.4]} 24... Bxf3 {[%clk 0:03:47.9]} 25. gxf3 {[%clk
0:03:51.6]} 25... Bh4 {[%clk 0:03:41.1]} 26. f4 {[%clk 0:03:47.2]} 26... Qe6
{[%clk 0:03:35.7]} 27. Rd1 {[%clk 0:03:45.6]} 27... Rcd8 {[%clk 0:03:33.6]} 28.
Bg2 {[%clk 0:03:44.7]} 28... Rfe8 {[%clk 0:03:30.6]} 29. Qd4+ {[%clk 0:03:41.9]}
29... Bf6 {[%clk 0:03:28.6]} 30. Qb6 {[%clk 0:03:31.9]} 30... d5 {[%clk
0:03:14.4]} 31. Qxe6 {[%clk 0:03:23.2]} 31... Rxe6 {[%clk 0:03:13.2]} 32. Bxd5
{[%clk 0:03:18.9]} 32... Rxe3 {[%clk 0:03:08.7]} 33. Bg2 {[%clk 0:03:16.5]}
33... Rxd1 {[%clk 0:03:03.7]} 34. Rxd1 {[%clk 0:03:16]} 34... Re2 {[%clk
0:03:02.8]} 35. h3 {[%clk 0:03:08.8]} 35... Rxb2 {[%clk 0:02:59.9]} 36. Rd6
{[%clk 0:03:07.8]} 36... a5 {[%clk 0:02:51.9]} 37. Ra6 {[%clk 0:03:04.1]} 37...
Bxc3 {[%clk 0:02:49.7]} 38. Ra7+ {[%clk 0:03:03.3]} 38... Kf6 {[%clk 0:02:46]}
39. Ra6+ {[%clk 0:03:01.1]} 39... Ke7 {[%clk 0:02:44.7]} 40. Ra7+ {[%clk
0:02:59.7]} 40... Kd6 {[%clk 0:02:43.6]} 41. Rxh7 {[%clk 0:02:58.6]} 41... Bd2
{[%clk 0:02:34.7]} 42. Bf3 {[%clk 0:02:51.3]} 42... Bxf4 {[%clk 0:02:32.7]} 43.
Rg7 {[%clk 0:02:49.2]} 43... g5 {[%clk 0:02:30.9]} 44. Ra7 {[%clk 0:02:41.7]}
44... Rh2+ {[%clk 0:02:21.4]} 45. Kg1 {[%clk 0:02:40.3]} 45... Rxh3 {[%clk
0:02:20.2]} 46. Kg2 {[%clk 0:02:36.1]} 46... Rh2+ {[%clk 0:02:16.4]} 47. Kg1
{[%clk 0:02:35.3]} 47... Be3+ {[%clk 0:02:04.9]} 48. Kxh2 {[%clk 0:02:31.9]}
48... Bxa7 {[%clk 0:02:04.4]} 49. Be2 {[%clk 0:02:29.3]} 49... b4 {[%clk
0:02:03.1]} 50. axb4 {[%clk 0:02:28.7]} 50... axb4 {[%clk 0:02:02]} 51. Bc4
{[%clk 0:02:28.4]} 51... Ke5 {[%clk 0:01:57.2]} 52. Kg3 {[%clk 0:02:27.4]} 52...
Kd4 {[%clk 0:01:55.8]} 53. Be6 {[%clk 0:02:26.3]} 53... Ke4 {[%clk 0:01:52.8]}
54. Bd7 {[%clk 0:02:22.5]} 54... b3 {[%clk 0:01:49.2]} 55. Bc6+ {[%clk
0:02:21.1]} 55... Ke3 {[%clk 0:01:47.2]} 56. Bd7 {[%clk 0:02:18.8]} 56... f4+
{[%clk 0:01:43.9]} 57. Kg4 {[%clk 0:02:17.4]} 57... b2 {[%clk 0:01:41.1]} 58.
Bf5 {[%clk 0:02:16.1]} 58... f3 {[%clk 0:01:40.6]} 0-1

[Event "Live Chess"]
[Site "Chess.com"]
[Date "2024.06.02"]
[Round "-"]
[White "DoctorMantisTobogganMD"]
[Black "AndrewBak1"]
[Result "1-0"]
[WhiteElo "2204"]
[BlackElo "1881"]
[TimeControl "300"]
[EndTime "6:32:46 PDT"]
[Termination "DoctorMantisTobogganMD won by checkmate"]

1. e4 {[%clk 0:04:58.8]} 1... c5 {[%clk 0:04:56.8]} 2. Nc3 {[%clk 0:04:58]} 2...
Nc6 {[%clk 0:04:55.6]} 3. Bb5 {[%clk 0:04:57.5]} 3... Nd4 {[%clk 0:04:53.4]} 4.
Bc4 {[%clk 0:04:57]} 4... e6 {[%clk 0:04:51.9]} 5. Nge2 {[%clk 0:04:56.5]} 5...
Nxe2 {[%clk 0:04:48.8]} 6. Qxe2 {[%clk 0:04:55.5]} 6... Be7 {[%clk 0:04:47.5]}
7. O-O {[%clk 0:04:54.8]} 7... d6 {[%clk 0:04:45.6]} 8. d3 {[%clk 0:04:53.8]}
8... Nf6 {[%clk 0:04:43.8]} 9. f4 {[%clk 0:04:53.4]} 9... O-O {[%clk 0:04:42.4]}
10. a4 {[%clk 0:04:51.4]} 10... d5 {[%clk 0:04:41.3]} 11. Ba2 {[%clk 0:04:50.1]}
11... b6 {[%clk 0:04:30]} 12. h3 {[%clk 0:04:45.6]} 12... Bb7 {[%clk 0:04:21.4]}
13. e5 {[%clk 0:04:43.1]} 13... Nd7 {[%clk 0:04:17.7]} 14. g4 {[%clk 0:04:41]}
14... Qc7 {[%clk 0:04:08.3]} 15. Nb5 {[%clk 0:04:32.7]} 15... Qc6 {[%clk
0:04:00.5]} 16. Qg2 {[%clk 0:04:30.4]} 16... a6 {[%clk 0:03:45.7]} 17. Nc3
{[%clk 0:04:28.7]} 17... b5 {[%clk 0:03:19.4]} 18. Bb3 {[%clk 0:04:06.7]} 18...
c4 {[%clk 0:03:01.8]} 19. dxc4 {[%clk 0:04:02]} 19... bxc4 {[%clk 0:02:56.2]}
20. Ba2 {[%clk 0:04:01.3]} 20... Nc5 {[%clk 0:02:44.4]} 21. Be3 {[%clk 0:03:37]}
21... Rad8 {[%clk 0:02:37.7]} 22. Bxc5 {[%clk 0:03:27.6]} 22... Bxc5+ {[%clk
0:02:27.4]} 23. Kh2 {[%clk 0:03:26.9]} 23... Qb6 {[%clk 0:02:12.7]} 24. a5
{[%clk 0:03:21.4]} 24... Qc7 {[%clk 0:02:09.3]} 25. Qe2 {[%clk 0:03:14.9]} 25...
Bc6 {[%clk 0:01:45.3]} 26. b3 {[%clk 0:03:06.6]} 26... Bb4 {[%clk 0:01:23.6]}
27. Na4 {[%clk 0:03:00.4]} 27... Bxa4 {[%clk 0:01:21]} 28. bxa4 {[%clk
0:02:59.3]} 28... Qxa5 {[%clk 0:01:18.3]} 29. f5 {[%clk 0:02:56.5]} 29... Qc7
{[%clk 0:01:10.6]} 30. f6 {[%clk 0:02:53.1]} 30... g6 {[%clk 0:01:06.6]} 31. Qe3
{[%clk 0:02:50.6]} 31... Rfe8 {[%clk 0:01:05.5]} 32. c3 {[%clk 0:02:49]} 32...
Bf8 {[%clk 0:01:04]} 33. Bb1 {[%clk 0:02:46.6]} 33... Qc5 {[%clk 0:01:01.4]} 34.
Qf4 {[%clk 0:02:41.8]} 34... d4 {[%clk 0:00:59.3]} 35. cxd4 {[%clk 0:02:39.4]}
35... Rxd4 {[%clk 0:00:58.9]} 36. Qg3 {[%clk 0:02:37.1]} 36... Red8 {[%clk
0:00:57.1]} 37. Ra2 {[%clk 0:02:33.3]} 37... Rd2+ {[%clk 0:00:55.6]} 38. Rf2
{[%clk 0:02:27.1]} 38... Rxf2+ {[%clk 0:00:43.7]} 39. Rxf2 {[%clk 0:02:27]}
39... c3 {[%clk 0:00:41.3]} 40. Bc2 {[%clk 0:02:26.3]} 40... Rd2 {[%clk
0:00:39.8]} 41. Kg2 {[%clk 0:02:23.5]} 41... Qd5+ {[%clk 0:00:37.7]} 42. Qf3
{[%clk 0:02:22.4]} 42... Rxf2+ {[%clk 0:00:36]} 43. Kxf2 {[%clk 0:02:21.1]}
43... Qd2+ {[%clk 0:00:34.6]} 44. Qe2 {[%clk 0:02:19.8]} 44... Qf4+ {[%clk
0:00:33.5]} 45. Kg2 {[%clk 0:02:18.2]} 45... Bc5 {[%clk 0:00:29.1]} 46. Bd3
{[%clk 0:02:08.6]} 46... Bd4 {[%clk 0:00:26.7]} 47. Bxa6 {[%clk 0:01:59.1]}
47... Bxe5 {[%clk 0:00:25.9]} 48. Qf3 {[%clk 0:01:51.3]} 48... c2 {[%clk
0:00:23]} 49. Qa8+ {[%clk 0:01:48.2]} 49... Bb8 {[%clk 0:00:21.2]} 50. Qc6
{[%clk 0:01:46.7]} 50... Qg3+ {[%clk 0:00:17.9]} 51. Kf1 {[%clk 0:01:42.9]}
51... Qxh3+ {[%clk 0:00:17.1]} 52. Ke2 {[%clk 0:01:42.8]} 52... Qh2+ {[%clk
0:00:15.1]} 53. Kd3 {[%clk 0:01:41.6]} 53... Qd6+ {[%clk 0:00:13.3]} 54. Qxd6
{[%clk 0:01:40.1]} 54... Bxd6 {[%clk 0:00:13.2]} 55. Kxc2 {[%clk 0:01:39.3]}
55... Be5 {[%clk 0:00:13.1]} 56. g5 {[%clk 0:01:38.1]} 56... Bf4 {[%clk
0:00:12.5]} 57. a5 {[%clk 0:01:36.9]} 57... Bxg5 {[%clk 0:00:12.1]} 58. Kd3
{[%clk 0:01:36.3]} 58... Bxf6 {[%clk 0:00:11.2]} 59. Bc8 {[%clk 0:01:33.3]}
59... Bh4 {[%clk 0:00:11.1]} 60. Ke2 {[%clk 0:01:31.9]} 60... Bf2 {[%clk
0:00:11]} 61. Kxf2 {[%clk 0:01:31]} 61... Kf8 {[%clk 0:00:10.3]} 62. a6 {[%clk
0:01:30.2]} 62... Ke7 {[%clk 0:00:10.2]} 63. a7 {[%clk 0:01:29.8]} 63... Kd6
{[%clk 0:00:10.1]} 64. a8=Q {[%clk 0:01:29.6]} 64... Ke5 {[%clk 0:00:10]} 65.
Qa7 {[%clk 0:01:28.6]} 65... Kf4 {[%clk 0:00:09.9]} 66. Qxf7+ {[%clk 0:01:27.8]}
66... Kg4 {[%clk 0:00:08.6]} 67. Qxe6+ {[%clk 0:01:25.8]} 67... Kh5 {[%clk
0:00:08.5]} 68. Qh3+ {[%clk 0:01:24.6]} 68... Kg5 {[%clk 0:00:07.7]} 69. Qxh7
{[%clk 0:01:23.5]} 69... Kf6 {[%clk 0:00:06.3]} 70. Qh4+ {[%clk 0:01:22]} 70...
Kg7 {[%clk 0:00:05.6]} 71. Qg5 {[%clk 0:01:20.8]} 71... Kf7 {[%clk 0:00:04.4]}
72. Bf5 {[%clk 0:01:19.8]} 72... Kg7 {[%clk 0:00:03.3]} 73. Qxg6+ {[%clk
0:01:18.9]} 73... Kf8 {[%clk 0:00:01.6]} 74. Qh7 {[%clk 0:01:17.7]} 74... Ke8
{[%clk 0:00:00.9]} 75. Qg7 {[%clk 0:01:15.9]} 75... Kd8 {[%clk 0:00:00.8]} 76.
Qd7# {[%clk 0:01:15.4]} 1-0